{"text_format":"3","workbook":"xlsx","n_sheets":2,"sheets":["SLIK BRUKER DU ARBEIDSBOKEN","KARAKTERBOK"],"not_rendered":{"defined_names":7},"read":"whole","date_system":"1900"}

{"sheet":"SLIK BRUKER DU ARBEIDSBOKEN","index":0,"n_rows":10,"n_cols":2,"rows_kept":10}
[null,"INSTRUKSJONER"]
[null,"Bruk KARAKTERBOK-regnearket for å beregne karakterer hvor hver oppgave er verst et visst antall poeng. "]
[null,"Instruksjoner: Sørg for å lagre sikkerhetskopier av karakterene dine."]
[null,"1. Fyll inn skolenavnet, klasseinformasjon, elevnavn og elev-ID-er (valgfritt).   "]
[null,"2. Juster Karakter- og Gjennomsnittlig karakter-tabellen for å samsvare med det vanlige karaktersettingssystemet du bruker."]
[null,"3. Fyll inn oppgave-, test eller prøvenavnene (f. eks. «Test 1») fra og med celle H8, i tillegg til poengene som hver oppgave er verdt. "]
[null,"4. Fyll inn poengene for hver elev for hver oppgave eller prøve. Kolonnen «Gjennomsnitt», «Poengsummen», «Ltr Grade» og «Gjennomsnittlig karakter» beregnes automatisk, men du kan overstyre dem hvis du vil. Hvis du vil tildele ekstra kredittpoeng, gir du bare flere poeng på en oppgave enn de totalt mulige poengene som er oppført for oppgaven."]
[null,"Bruk «Utskriftsområde»-kommandoen på Sideoppsett-menyen hvis du ønsker å endre hva som skrives ut."]
[null,"Resultater for karakterer er basert på en standard prosentandelskala i henhold til totalt antall poeng som ble tilordnet i radene 8 og 9. Juster hver oppgave eller prøve til den ønskede poengsummen, deretter justerer du prosentandelen med den riktige karakteren. Overskriv Poengsum-cellene for å foreta endringer manuelt."]
[null,"Skriv inn hver oppgave, test eller prøve og poengene de er verst i cellene H8 til X9."]

{"sheet":"KARAKTERBOK","index":1,"n_rows":24,"n_cols":24,"rows_kept":24,"merged":[[1,1,2,6],[3,1,3,6],[4,1,6,6],[7,4,7,6],[8,4,8,6],[10,4,10,6],[11,4,11,6],[19,1,19,6],[20,1,20,2],[20,3,20,4],[21,1,21,2],[21,3,21,4],[22,1,22,2],[22,3,22,4],[23,1,23,2],[23,3,23,4]]}
[null,"NAVNET PÅ SKOLEN"]
[null,"Lærernavn"]
[{"$nulls":7},"Poengsum",{"$f":"I4*TotalPoints","v":118},120,126,134,140,{"v":145.6666666666666,"d":"146"},154,160,166,174,180,186,194]
[null,"Fag/prosjekt",{"$nulls":5},"%",{"v":0.59,"d":"59%"},{"v":0.6,"d":"60%"},{"v":0.63,"d":"63%"},{"v":0.67,"d":"67%"},{"v":0.7,"d":"70%"},{"v":0.728333333333333,"d":"73%"},{"v":0.77,"d":"77%"},{"v":0.8,"d":"80%"},{"v":0.83,"d":"83%"},{"v":0.87,"d":"87%"},{"v":0.9,"d":"90%"},{"v":0.93,"d":"93%"},{"v":0.97,"d":"97%"}]
[null,"År/semester/kvartal",{"$nulls":5},"Ltr Grade","F","D-","D","D+","C-","C","C+","B-","B","B+","A-","A","A+"]
[{"$nulls":7},"Gjennomsnittlig karakter",0,0.67,1,1.33,1.67,2,2.33,2.67,3,3.33,3.67,4,4]
[]
[{"$nulls":4},"Oppgave- eller prøvenavn",null,null,"HW1","HW2","1. kvartal"]
[{"$nulls":4},"Totalt tilgjengelige poeng",null,null,50,50,100]
[]
[{"$nulls":4},"Totalt antall oppgaver og prøver:",null,null,{"$f":"COUNTA(H8:X8)","v":3}]
[{"$nulls":4},"Totalt mulige poeng:",null,null,{"$f":"SUM(H9:X9)","v":200}]
[]
[null,"Elevens navn","ID for elev","Gjennomsnitt","Poengsum","Ltr Grade","Gjennomsnittlig karakter","Kolonne6","Kolonne7","Kolonne8","Kolonne9","Kolonne10","Kolonne11","Kolonne12","Kolonne13","Kolonne14","Kolonne15","Kolonne16","Kolonne17","Kolonne18","Kolonne19","Kolonne20","Kolonne21","Kolonne22"]
[null,"Elevnummer 1",null,{"$f":"IFERROR(IF(COUNT(Karakterer[[#This Row],[Kolonne6]:[Kolonne22]])=0,\"\",SUM(Karakterer[[#This Row],[Kolonne6]:[Kolonne22]])/TotalPoints),\"\")","v":{"v":0.91,"d":"91.0%"}},{"$f":"IF(COUNT(Karakterer[[#This Row],[Kolonne6]:[Kolonne22]])=0,\"\",SUM(Karakterer[[#This Row],[Kolonne6]:[Kolonne22]]))","v":182},{"$f":"IFERROR(IF(Karakterer[[#This Row],[Gjennomsnitt]]<>\"\",HLOOKUP(Karakterer[[#This Row],[Gjennomsnitt]]*TotalPoints,GradeTable,3),\"\"),0)","v":"A-"},{"$f":"IFERROR(IF(Karakterer[[#This Row],[Gjennomsnitt]]<>\"\",HLOOKUP(Karakterer[[#This Row],[Gjennomsnitt]]*TotalPoints,GradeTable,4),\"\"),0)","v":3.67},45,45,92]
[null,"Elevnummer 2",null,{"$f":"IFERROR(IF(COUNT(Karakterer[[#This Row],[Kolonne6]:[Kolonne22]])=0,\"\",SUM(Karakterer[[#This Row],[Kolonne6]:[Kolonne22]])/TotalPoints),\"\")","v":{"v":1,"d":"100.0%"}},{"$f":"IF(COUNT(Karakterer[[#This Row],[Kolonne6]:[Kolonne22]])=0,\"\",SUM(Karakterer[[#This Row],[Kolonne6]:[Kolonne22]]))","v":200},{"$f":"IFERROR(IF(Karakterer[[#This Row],[Gjennomsnitt]]<>\"\",HLOOKUP(Karakterer[[#This Row],[Gjennomsnitt]]*TotalPoints,GradeTable,3),\"\"),0)","v":"A+"},{"$f":"IFERROR(IF(Karakterer[[#This Row],[Gjennomsnitt]]<>\"\",HLOOKUP(Karakterer[[#This Row],[Gjennomsnitt]]*TotalPoints,GradeTable,4),\"\"),0)","v":{"v":4,"d":"4.00"}},50,50,100]
[{"$nulls":3},{"$f":"IFERROR(IF(COUNT(Karakterer[[#This Row],[Kolonne6]:[Kolonne22]])=0,\"\",SUM(Karakterer[[#This Row],[Kolonne6]:[Kolonne22]])/TotalPoints),\"\")","v":""},{"$f":"IF(COUNT(Karakterer[[#This Row],[Kolonne6]:[Kolonne22]])=0,\"\",SUM(Karakterer[[#This Row],[Kolonne6]:[Kolonne22]]))","v":""},{"$f":"IFERROR(IF(Karakterer[[#This Row],[Gjennomsnitt]]<>\"\",HLOOKUP(Karakterer[[#This Row],[Gjennomsnitt]]*TotalPoints,GradeTable,3),\"\"),0)","v":""},{"$f":"IFERROR(IF(Karakterer[[#This Row],[Gjennomsnitt]]<>\"\",HLOOKUP(Karakterer[[#This Row],[Gjennomsnitt]]*TotalPoints,GradeTable,4),\"\"),0)","v":""}]
[{"$nulls":3},{"$f":"IFERROR(IF(COUNT(Karakterer[[#This Row],[Kolonne6]:[Kolonne22]])=0,\"\",SUM(Karakterer[[#This Row],[Kolonne6]:[Kolonne22]])/TotalPoints),\"\")","v":""},{"$f":"IF(COUNT(Karakterer[[#This Row],[Kolonne6]:[Kolonne22]])=0,\"\",SUM(Karakterer[[#This Row],[Kolonne6]:[Kolonne22]]))","v":""},{"$f":"IFERROR(IF(Karakterer[[#This Row],[Gjennomsnitt]]<>\"\",HLOOKUP(Karakterer[[#This Row],[Gjennomsnitt]]*TotalPoints,GradeTable,3),\"\"),0)","v":""},{"$f":"IFERROR(IF(Karakterer[[#This Row],[Gjennomsnitt]]<>\"\",HLOOKUP(Karakterer[[#This Row],[Gjennomsnitt]]*TotalPoints,GradeTable,4),\"\"),0)","v":""}]
[{"$nulls":3},{"$f":"IFERROR(IF(COUNT(Karakterer[[#This Row],[Kolonne6]:[Kolonne22]])=0,\"\",SUM(Karakterer[[#This Row],[Kolonne6]:[Kolonne22]])/TotalPoints),\"\")","v":""},{"$f":"IF(COUNT(Karakterer[[#This Row],[Kolonne6]:[Kolonne22]])=0,\"\",SUM(Karakterer[[#This Row],[Kolonne6]:[Kolonne22]]))","v":""},{"$f":"IFERROR(IF(Karakterer[[#This Row],[Gjennomsnitt]]<>\"\",HLOOKUP(Karakterer[[#This Row],[Gjennomsnitt]]*TotalPoints,GradeTable,3),\"\"),0)","v":""},{"$f":"IFERROR(IF(Karakterer[[#This Row],[Gjennomsnitt]]<>\"\",HLOOKUP(Karakterer[[#This Row],[Gjennomsnitt]]*TotalPoints,GradeTable,4),\"\"),0)","v":""}]
[]
[null,"Klassesammendrag",null,"Gjennomsnitt",null,"Ltr Grade","Gjennomsnittlig karakter","","","","","","","","","","",""]
[null," Gjennomsnitt",null,{"$f":"IFERROR(AVERAGE(Karakterer[[#All],[Gjennomsnitt]]),0)","v":{"v":0.9550000000000001,"d":"95.5%"}},null,{"$f":"IFERROR(HLOOKUP(D22*TotalPoints,GradeTable,3),\"\")","v":"A"},{"$f":"IFERROR(AVERAGE(Karakterer[[#All],[Gjennomsnittlig karakter]]),0)","v":{"v":3.835,"d":"3.84"}},"","","","","","","","","","","","","","","","",""]
[null," Høyeste poengsum",null,{"$f":"IFERROR(MAX(Karakterer[[#All],[Gjennomsnitt]]),0)","v":{"v":1,"d":"100.0%"}},null,{"$f":"IFERROR(HLOOKUP(D23*TotalPoints,GradeTable,3),\"\")","v":"A+"},{"$f":"IFERROR(MAX(Karakterer[[#All],[Gjennomsnittlig karakter]]),0)","v":{"v":4,"d":"4.00"}},"","","","","","","","","","","","","","","","",""]
[null," Laveste poengsum",null,{"$f":"IFERROR(MIN(Karakterer[[#All],[Gjennomsnitt]]),0)","v":{"v":0.91,"d":"91.0%"}},null,{"$f":"IFERROR(HLOOKUP(D24*TotalPoints,GradeTable,3),\"\")","v":"A-"},{"$f":"IFERROR(MIN(Karakterer[[#All],[Gjennomsnittlig karakter]]),0)","v":3.67},"","","","","","","","","","","","","","","","",""]